bitfinex/quotes_ETHUSD_20240926
["timestamp","ask_amount","ask_price","bid_price","bid_amount"]
[1727313734940,3.88206,2576.0,2575.5,3.88273]
[1727313735144,3.88206,2576.0,2575.5,3.93947249]
[1727313735443,7.76353,2576.2,2575.7,0.8042]
[1727313735593,3.88175,2576.2,2575.7,0.8042]
[1727313735812,7.76298,2576.4,2575.8,3.88226]
[1727313735995,3.88169,2576.2,2575.8,0.05674249]
[1727313736199,3.88147,2576.4,2575.8,3.93898249]
[1727313736442,3.88113,2576.6,2575.9,0.8179]
[1727313736612,3.88113,2576.6,2575.9,4.70001]
[1727313736613,3.88139,2576.4,2575.9,4.70001]
[1727313736798,3.88139,2576.4,2576.0,0.05593935]
[1727313737197,7.76234,2576.6,2576.0,0.05593935]
[1727313737451,0.7899,2576.1,2575.0,0.8172]
[1727313737628,0.77956028,2576.5,2574.4,0.8172]
[1727313737629,3.8835,2575.0,2574.4,0.8172]
[1727313737801,3.88365,2574.9,2574.4,0.8172]
[1727313738007,4.52499177,2575.2,2574.4,0.8172]
[1727313738234,3.88306,2575.3,2574.7,3.88386]
[1727313738442,3.88326,2575.2,2574.9,0.8172]
[1727313739148,3.88306,2575.3,2574.9,0.8172]
[1727313739350,3.88254,2575.7,2575.1,3.88328]
[1727313739551,3.88254,2575.7,2575.2,0.8302]
[1727313739721,7.76508,2575.7,2575.2,1.301548]
[1727313739919,3.88254,2575.7,2575.2,1.301548]
[1727313740545,3.88254,2575.7,2575.2,0.8302]
[1727313741549,3.88221,2575.9,2575.3,3.88303]
[1727313742719,3.88221,2575.9,2575.4,3.88288]
[1727313742920,0.0332628,2576.7,2575.7,0.8302]
[1727313743138,0.0332628,2576.7,2576.4,3.88136]
[1727313743336,0.0332628,2576.7,2576.2,3.88156]
[1727313743651,0.0332628,2576.7,2576.3,4.66138]
[1727313744014,0.0332628,2576.7,2576.3,0.7799]
[1727313744635,0.0332628,2576.7,2576.3,4.66134]
[1727313744957,0.0332628,2576.7,2576.4,0.0465374]
[1727313745715,3.88123,2576.5,2576.4,0.0465374]
[1727313745923,3.9142928,2576.7,2576.4,0.0465374]
[1727313746253,7.7953228,2576.7,2576.3,0.7799]
[1727313746454,3.9142928,2576.7,2576.3,0.7799]
[1727313746612,0.0332628,2576.7,2576.4,0.0465374]
[1727313747045,3.9142128,2576.7,2576.4,0.0465374]
[1727313747725,0.0332628,2576.7,2576.4,0.0465374]
[1727313748047,0.0332628,2576.7,2576.4,0.51733214]
[1727313748961,0.0332628,2576.7,2576.4,4.39869214]
[1727313749112,0.0332628,2576.7,2576.4,0.51733214]
[1727313749446,0.0332628,2576.7,2576.4,0.0465374]
[1727313749858,0.0332628,2576.7,2576.4,3.9279074]
[1727313750157,0.0332628,2576.7,2576.4,0.0465374]
[1727313750545,0.0332628,2576.7,2576.6,0.7936]
[1727313751158,0.0332628,2576.7,2576.6,0.83852361]
[1727313751572,0.0332628,2576.7,2576.6,0.04492361]
[1727313751921,0.0332628,2576.7,2576.3,4.67509]
[1727313752132,0.0332628,2576.7,2576.4,4.78197161]
[1727313753060,0.0332628,2576.7,2576.4,4.78188161]
[1727313754057,0.0625634,2576.9,2576.4,4.78188161]
[1727313754261,0.0625634,2576.9,2576.4,8.66316161]
[1727313754423,0.0625634,2576.9,2576.5,0.94567616]
[1727313754623,3.9432434,2576.9,2576.5,0.94567616]
[1727313754833,3.9432434,2576.9,2576.6,0.04492361]
[1727313754834,3.88093,2576.7,2576.6,0.04492361]
[1727313755181,3.88109,2576.6,2576.0,8.52089]
[1727313755468,3.88109,2576.6,2576.0,4.63899]
[1727313755678,3.88109,2576.6,2576.1,3.88181]
[1727313755831,4.64487,2576.8,2576.1,0.85208]
[1727313756035,3.88097,2576.7,2576.2,3.88159]
[1727313756235,3.88087,2576.8,2576.2,3.88159]
[1727313756436,7.76178,2576.8,2576.2,3.88159]
[1727313757440,3.88087,2576.8,2576.2,7.76319]
[1727313757640,3.88087,2576.8,2576.2,8.700427]
[1727313757841,3.88095,2576.7,2576.3,0.7843]
[1727313758045,3.88087,2576.8,2576.3,4.6658]
[1727313759088,0.0625634,2576.9,2576.3,1.7327627]
[1727313759383,0.0625634,2576.9,2576.5,3.88122]
[1727313760054,0.0625634,2576.9,2576.6,0.04488541]
[1727313760442,0.0625634,2576.9,2576.4,7.76262]
[1727313760644,0.0625634,2576.9,2576.7,0.04488541]
[1727313760984,3.9432634,2576.9,2576.8,0.04488541]
[1727313761279,3.881,2576.7,2576.1,4.66611]
[1727313761491,7.76208,2576.7,2576.1,4.66611]
[1727313761782,3.8811,2576.6,2576.2,0.04488541]
[1727313762141,3.881,2576.7,2576.2,0.04488541]
[1727313762544,0.0625634,2576.9,2576.2,0.51597795]
[1727313762743,0.0625634,2576.9,2576.3,7.76284]
[1727313762744,3.9432034,2576.9,2576.3,7.76284]
[1727313763172,0.0625634,2576.9,2576.4,0.04488541]
[1727313763371,0.0625634,2576.9,2576.7,4.65512]
[1727313763572,0.0625634,2576.9,2576.8,0.853611]
[1727313763784,0.0625634,2576.9,2576.7,0.7742]
[1727313763975,0.0625634,2576.9,2576.8,0.04488541]
[1727313764144,0.0625634,2576.9,2576.7,0.7742]
[1727313764346,0.0625634,2576.9,2576.8,0.04488541]
[1727313765988,0.0625634,2576.9,2576.7,0.7742]
[1727313766189,0.0625634,2576.9,2576.8,0.04478996]
[1727313770496,0.0625634,2576.9,2576.8,0.51478096]
[1727313771692,0.0625634,2576.9,2576.8,0.04478996]
[1727313772061,0.0625634,2576.9,2576.8,4.69278]
[1727313772275,0.0625634,2576.9,2576.8,4.73733134]
[1727313774971,0.0625634,2576.9,2576.8,0.85655134]
[1727313776117,3.9431934,2576.9,2576.8,0.04455134]
[1727313776415,3.9431934,2576.9,2576.5,0.7825]
[1727313776759,3.9431934,2576.9,2576.6,0.04455134]
[1727313776960,0.0625634,2576.9,2576.6,0.04455134]
[1727313777181,3.88086,2576.8,2576.6,0.04455134]
[1727313777462,0.0625634,2576.9,2576.6,0.04455134]
[1727313777992,0.0625634,2576.9,2576.6,0.51539447]
[1727313778192,0.0625634,2576.9,2576.6,0.04455134]
[1727313778393,0.0625634,2576.9,2576.6,3.92562134]
[1727313778604,0.0625634,2576.9,2576.6,0.04455134]
[1727313779105,3.88079,2576.8,2576.6,0.04455134]
[1727313779394,3.88093,2576.7,2576.6,0.04455134]
[1727313779795,3.88093,2576.7,2575.7,7.44]
[1727313779796,3.88093,2576.7,2576.0,0.776]
[1727313780005,7.76262,2576.5,2576.0,1.241804]
[1727313780160,3.9068815,2576.5,2576.1,0.04455134]
[1727313780360,3.88168,2576.2,2576.1,0.04455134]
[1727313780554,0.77,2576.4,2575.5,3.8826]
[1727313780555,3.88223,2575.9,2575.5,0.8017]
[1727313780754,3.88223,2575.9,2575.6,0.04455134]
[1727313780970,3.88243,2575.7,2575.6,0.04455134]
[1727313781255,3.88229,2575.8,2575.2,0.8017]
[1727313781436,3.88232,2575.8,2575.6,0.04351496]
[1727313781653,3.88207,2576.0,2575.3,3.88294]
[1727313781825,3.88207,2576.0,2575.7,0.04396363]
[1727313782024,3.88215,2575.9,2575.4,0.468464]
[1727313782337,3.88207,2576.0,2575.8,0.04396363]
[1727313782560,3.88207,2576.0,2575.5,3.8827]
[1727313782859,3.88207,2576.0,2575.5,0.8234094]
[1727313783070,3.88207,2576.0,2575.6,0.04396363]
[1727313784769,3.9074215,2576.1,2575.6,0.04396363]
[1727313784980,0.0255815,2576.1,2575.7,4.68931]
[1727313785146,0.0255815,2576.1,2575.7,1.3626683]
[1727313785779,0.0255815,2576.1,2575.8,0.04396363]
[1727313788723,3.88213,2575.9,2575.8,0.04396363]
[1727313789070,7.76436,2575.9,2575.5,0.8091]
[1727313789246,3.88213,2575.9,2575.8,0.04332573]
[1727313789442,3.88213,2575.9,2575.3,12.13205]
[1727313789443,3.88237,2575.8,2575.3,12.13205]
[1727313790050,3.88237,2575.8,2575.4,0.04332573]
[1727313790385,3.88229,2575.8,2575.4,0.04332573]
[1727313790682,3.88213,2575.9,2575.4,0.04332573]
[1727313790683,4.63213,2575.9,2575.4,0.04332573]
[1727313790860,3.88247,2575.7,2575.4,0.04332573]
[1727313792170,7.7894715,2576.1,2575.4,0.04332573]
[1727313792507,3.882,2576.0,2575.4,3.92606573]
[1727313792677,7.7894915,2576.1,2575.5,3.88263]
[1727313792862,3.9075115,2576.1,2575.5,5.48840957]
[1727313793193,3.9074715,2576.1,2575.7,0.8008]
[1727313793793,3.9074715,2576.1,2575.8,0.04350711]
[1727313794498,0.0255815,2576.1,2575.8,0.51619182]
[1727313794671,3.9074315,2576.1,2575.8,0.51619182]
[1727313794870,3.9074315,2576.1,2575.8,0.04350711]
[1727313796096,0.0255815,2576.1,2575.8,0.04350711]
[1727313796256,0.0255815,2576.1,2575.8,3.92571711]
[1727313796455,0.0255815,2576.1,2575.9,3.88204]
[1727313796696,0.0255815,2576.1,2575.8,3.92571711]
[1727313796859,0.0255815,2576.1,2576.0,0.04332573]
[1727313797068,0.0255815,2576.1,2575.9,0.47265171]
[1727313797257,0.0255815,2576.1,2576.0,0.83642573]
[1727313797599,0.0255815,2576.1,2576.0,4.71840573]
[1727313797898,0.0255815,2576.1,2576.0,4.79603479]
[1727313798193,0.0255815,2576.1,2576.0,5.66385027]
[1727313800895,0.0255815,2576.1,2576.0,1.70424121]
[1727313801078,0.0255815,2576.1,2576.0,5.58622121]
[1727313803760,0.0255815,2576.1,2576.0,1.70424121]
[1727313803875,0.0255815,2576.1,2576.0,4.71840573]
[1727313804833,0.0255815,2576.1,2576.0,4.79603333]
[1727313809228,0.0255815,2576.1,2576.0,0.04332573]
[1727313809579,0.0255815,2576.1,2575.8,3.8822]
[1727313809814,0.0255815,2576.1,2575.9,3.88209]
[1727313810124,0.0255815,2576.1,2575.9,4.38831873]
[1727313810604,0.0255815,2576.1,2575.9,8.27032873]
[1727313811015,0.0255815,2576.1,2575.9,4.38827873]
[1727313811391,0.0255815,2576.1,2575.9,8.27033873]
[1727313811724,0.0255815,2576.1,2575.9,4.38827873]
[1727313811878,0.0255815,2576.1,2575.9,0.04198973]
[1727313812318,0.0255815,2576.1,2575.7,4.6426]
[1727313812526,0.0255815,2576.1,2576.0,0.04218053]
[1727313812732,0.0255815,2576.1,2575.7,7.76463]
[1727313812932,0.0255815,2576.1,2576.0,0.04218053]
[1727313813107,0.0255815,2576.1,2575.7,3.8823]
[1727313813304,0.0255815,2576.1,2576.0,0.04218053]
[1727313813805,0.0255815,2576.1,2575.7,3.8823]
[1727313814212,0.0255815,2576.1,2575.8,0.04218053]
[1727313816139,0.0255815,2576.1,2575.6,3.88258]
[1727313816308,0.0255815,2576.1,2575.9,0.04248588]
[1727313816510,0.0255815,2576.1,2575.6,3.88248]
[1727313816836,0.0255815,2576.1,2575.8,3.8822]
[1727313817535,0.0255815,2576.1,2575.9,0.04248588]
[1727313817698,3.9074315,2576.1,2575.9,0.04248588]
[1727313818214,3.9074315,2576.1,2575.4,6.88286]
[1727313818215,3.88198,2576.0,2575.4,6.88278]
[1727313818400,3.88198,2576.0,2575.5,3.88266]
[1727313818803,0.804,2575.9,2575.5,3.88266]
[1727313819002,0.8295815,2576.1,2575.7,3.88237]
[1727313819548,0.0255815,2576.1,2575.8,3.88227]
[1727313819727,0.0255815,2576.1,2575.9,3.88202]
[1727313819917,0.0255815,2576.1,2575.8,4.70187]
[1727313820121,0.0255815,2576.1,2576.0,0.04256222]
[1727313820303,0.0255815,2576.1,2575.8,8.58406]
[1727313820506,0.0255815,2576.1,2576.0,0.04256222]
[1727313820715,0.0255815,2576.1,2575.9,4.8181453]
[1727313820905,0.0255815,2576.1,2576.0,0.04256222]
[1727313822919,0.0255815,2576.1,2575.9,3.68213]
[1727313823149,0.0255815,2576.1,2576.0,0.04267672]
[1727313823448,0.0255815,2576.1,2575.8,3.88219]
[1727313823652,0.0255815,2576.1,2576.0,0.04267672]
[1727313823952,0.0255815,2576.1,2575.8,3.88219]
[1727313824114,0.0255815,2576.1,2576.0,0.04267672]
[1727313824309,0.0255815,2576.1,2575.8,3.88219]
[1727313824549,0.0255815,2576.1,2576.0,0.04267672]
[1727313824728,0.0255815,2576.1,2575.8,3.88219]
[1727313824913,0.0255815,2576.1,2576.0,0.04267672]
[1727313825605,0.0255815,2576.1,2575.8,3.88219]
[1727313825813,0.0255815,2576.1,2575.9,3.92474672]
[1727313826011,0.0255815,2576.1,2576.0,3.88198]
[1727313826652,0.0255815,2576.1,2576.0,3.92465672]
[1727313831171,0.0255815,2576.1,2576.0,0.04267672]
[1727313832540,0.0255815,2576.1,2576.0,3.92465672]
[1727313832745,0.0255815,2576.1,2576.0,0.04267672]
[1727313833049,0.0255815,2576.1,2576.0,3.92465672]
[1727313833259,0.0255815,2576.1,2576.0,4.79055599]
[1727313834644,0.0255815,2576.1,2576.0,0.04267672]
[1727313834846,0.8075815,2576.1,2576.0,0.04267672]
[1727313835134,4.6894115,2576.1,2576.0,0.04267672]
[1727313835328,4.6894115,2576.1,2575.5,3.88261]
[1727313835571,4.6894115,2576.1,2576.0,0.0424477]
[1727313835867,5.54652265,2576.1,2576.0,0.0424477]
[1727313836066,5.54652265,2576.1,2575.6,3.88258]
[1727313836281,4.6894115,2576.1,2576.0,0.0424477]
[1727313836437,4.6894115,2576.1,2575.6,3.88258]
[1727313836629,4.6894115,2576.1,2576.0,0.04281034]
[1727313836872,4.6894115,2576.1,2575.6,3.88258]
[1727313837079,4.6894115,2576.1,2576.0,0.04281034]
[1727313837225,4.6894115,2576.1,2575.6,3.88258]
[1727313837431,4.6894115,2576.1,2576.0,0.04281034]
[1727313837659,0.0255815,2576.1,2575.8,3.88214]
[1727313837856,0.0255815,2576.1,2576.0,0.04281034]
[1727313838094,0.0255815,2576.1,2576.0,3.88198]
[1727313838294,0.0255815,2576.1,2576.0,3.92479034]
[1727313841268,0.0255815,2576.1,2576.0,4.00241822]
[1727313841478,0.0255815,2576.1,2576.0,4.90998244]
[1727313842885,0.0255815,2576.1,2576.0,4.83235456]
[1727313843231,0.0255815,2576.1,2576.0,4.00241903]
[1727313844117,0.0255815,2576.1,2576.0,4.77421903]
[1727313844279,0.0255815,2576.1,2576.0,7.736827]
[1727313844490,0.0255815,2576.1,2576.0,7.65919831]
[1727313845416,0.7742,2577.1,2576.0,7.54179213]
[1727313845589,3.88022,2577.2,2576.6,8.57614]
[1727313846105,3.88022,2577.2,2576.7,0.04187523]
[1727313846542,3.88022,2577.2,2576.7,3.92280523]
[1727313847019,3.88022,2577.2,2576.7,0.04187523]
[1727313847229,3.88047,2577.1,2576.7,0.04187523]
[1727313847726,3.88047,2577.1,2576.5,3.88121]
[1727313848018,3.67402722,2577.4,2576.8,0.04187523]
[1727313848019,4.7367119,2576.9,2576.8,0.04187523]
[1727313848220,4.7367119,2576.9,2576.3,3.8815]
[1727313848420,3.8808,2576.8,2576.3,3.88145]
[1727313848796,3.8808,2576.8,2576.4,0.04165584]
[1727313849020,3.88099,2576.7,2576.4,0.04165584]
[1727313849385,0.8560819,2576.9,2576.4,3.8813]
[1727313849689,0.8560819,2576.9,2576.5,0.82583627]
[1727313850219,4.7367219,2576.9,2576.5,0.82583627]
[1727313851003,0.8560819,2576.9,2576.5,4.70696627]
[1727313852426,0.8560819,2576.9,2576.6,3.88107]
[1727313852655,0.0369819,2576.9,2576.6,3.88107]
[1727313852813,0.0369819,2576.9,2576.7,0.04179359]
[1727313853025,0.0369819,2576.9,2576.7,3.92268359]
[1727313853320,0.0369819,2576.9,2576.8,3.88078]
[1727313853728,0.0369819,2576.9,2576.8,3.92257359]
[1727313853898,0.0369819,2576.9,2576.8,4.0001796]
[1727313854107,0.0369819,2576.9,2576.8,9.64823521]
[1727313854309,0.0369819,2576.9,2576.8,12.79490361]
[1727313854854,0.0369819,2576.9,2576.8,13.1196573]
[1727313855120,0.0369819,2576.9,2576.8,11.98040415]
[1727313856214,0.0369819,2576.9,2576.8,11.97827328]
[1727313856522,0.0369819,2576.9,2576.8,10.53453918]
[1727313857426,0.0369819,2576.9,2576.8,9.5706292]
[1727313859019,0.0369819,2576.9,2576.8,11.10106016]
[1727313859234,0.0369819,2577.6,2576.8,11.10106016]
[1727313859235,0.0369819,2577.6,2577.5,4.63382]
[1727313859417,0.0369819,2577.6,2577.5,4.71139652]
[1727313859795,0.0369819,2577.6,2577.5,4.75203608]
[1727313861493,0.0369819,2577.6,2577.5,5.30203608]
[1727313862304,0.0369819,2577.6,2577.5,5.22445956]
[1727313862644,0.0369819,2577.6,2577.5,9.21246975]
[1727313862787,0.0369819,2577.6,2577.5,9.13489252]
[1727313864395,0.0369819,2578.4,2577.5,28.81489252]
[1727313864631,0.0369819,2578.4,2578.3,5.25122]
[1727313865033,0.0369819,2578.4,2578.3,5.28848203]
[1727313865253,0.0369819,2578.4,2578.3,6.57259896]
[1727313865417,0.0369819,2578.4,2578.3,6.10014976]
[1727313865592,0.0369819,2578.4,2578.3,6.02259896]
[1727313865997,0.0369819,2578.4,2578.3,9.10014952]
[1727313866292,0.0369819,2578.4,2578.3,12.69662618]
[1727313866499,0.0369819,2578.4,2578.3,13.24662618]
[1727313868121,0.0369819,2578.4,2578.3,9.57259896]
[1727313872151,0.0369819,2578.4,2578.3,13.24662618]
[1727313873268,0.0369819,2578.4,2578.3,32.92662618]
[1727313873427,0.0369819,2578.4,2578.3,33.49599357]
[1727313873616,0.0369819,2579.2,2578.3,32.67329357]
[1727313873861,0.0369819,2579.2,2579.1,7.66322]
[1727313874419,0.0369819,2579.2,2579.1,7.6997106]
[1727313876339,0.0369819,2579.2,2579.1,8.2497106]
[1727313876865,0.0369819,2579.2,2579.1,11.92373782]
[1727313877077,0.0369819,2579.2,2579.1,31.60373782]
[1727313877234,0.0369819,2579.2,2579.1,35.20879334]
[1727313877444,0.0369819,2579.9,2579.8,7.69766]
[1727313877691,0.0369819,2579.9,2579.8,11.95628312]
[1727313879190,0.8238,2580.6,2580.5,3.87521]
[1727313879540,0.8238,2580.6,2580.5,3.90977736]
[1727313881982,0.0369819,2580.7,2580.6,3.87506]
[1727313882152,0.0369819,2580.7,2580.6,3.95255214]
[1727313882564,0.0369819,2580.7,2580.6,3.9871195]
[1727313882978,0.0369819,2580.7,2580.6,3.98711962]
[1727313883561,0.0369819,2580.7,2580.6,3.90962736]
[1727313883754,0.0369819,2580.7,2580.6,4.76596247]
[1727313884259,0.0369819,2580.7,2580.6,4.73139511]
[1727313885792,0.8266,2580.9,2580.8,3.87476]
[1727313885793,0.05453006,2580.9,2580.8,3.87476]
[1727313886200,11.45861912,2581.5,2580.8,3.87476]
[1727313886201,7.58479912,2581.5,2580.8,3.87476]
[1727313886403,3.67402722,2581.3,2580.8,3.87476]
[1727313886698,7.54845722,2581.1,2580.5,7.44]
[1727313886902,3.9108319,2581.5,2580.9,3.87451]
[1727313887257,3.87385,2581.5,2580.9,7.74904]
[1727313887454,3.87385,2581.5,2580.9,3.87451]
[1727313887659,3.87387,2581.4,2580.7,3.8748]
[1727313887882,11.42173722,2581.5,2580.9,3.87461]
[1727313888074,3.67402722,2581.5,2580.7,3.8748]
[1727313888268,6.87332,2581.8,2580.6,3.87503]
[1727313888269,3.67402722,2581.3,2580.6,3.87503]
[1727313888479,3.8742,2581.2,2580.6,3.87503]
[1727313888690,0.7663,2581.1,2580.6,3.87503]
[1727313888891,4.64064,2581.1,2580.5,11.31514]
[1727313889059,4.64064,2581.1,2580.5,15.19027]
[1727313889272,4.64064,2581.1,2580.5,11.31513]
[1727313889474,4.64064,2581.1,2580.6,3.87501]
[1727313889702,4.64064,2581.1,2580.5,11.31513]
[1727313889864,0.7663,2581.1,2580.7,3.87479]
[1727313890412,0.7663,2581.1,2580.7,7.74959]
[1727313890904,0.7663,2581.1,2580.5,3.87508]
[1727313891987,0.7663,2581.1,2580.3,3.85128819]
[1727313892191,0.7663,2581.1,2580.7,3.8748]
[1727313894105,0.7663,2581.1,2580.7,7.74962]
[1727313894281,0.7663,2581.1,2580.7,3.8748]
[1727313894476,0.7663,2581.1,2580.9,3.8746]
[1727313894881,0.7663,2581.1,2581.0,3.87446]
[1727313895716,4.70268,2581.5,2580.9,4.6801]
[1727313896013,0.8289,2582.1,2581.8,3.87317]
[1727313896366,0.8289,2582.1,2581.8,7.74633]
[1727313896607,0.8289,2582.1,2581.8,3.87316]
[1727313897423,0.7633,2582.3,2581.9,3.95056311]
[1727313897604,0.7633,2582.3,2582.0,3.87288]
[1727313897776,0.7633,2582.3,2581.9,3.87311]
[1727313898105,0.7633,2582.3,2581.9,3.95055881]
[1727313898886,0.7633,2582.3,2581.7,3.87334]
[1727313899084,3.9066136,2582.2,2581.8,0.07745065]
[1727313899498,3.9066136,2582.2,2581.7,3.8733]
[1727313899795,3.9066136,2582.2,2581.7,7.82407206]
[1727313899998,3.9066136,2582.2,2581.7,7.74661]
[1727313900208,0.0338736,2582.2,2581.8,0.07745207]
[1727313900398,0.0338736,2582.2,2581.9,3.87309]
[1727313900783,0.0338736,2582.2,2582.0,3.87296]
[1727313900978,0.0338736,2582.2,2581.9,3.87309]
[1727313901210,0.0338736,2582.2,2581.8,0.07745068]
[1727313901562,0.0338736,2582.2,2581.4,0.7968]
[1727313901563,3.87311,2582.0,2581.5,3.87368]
[1727313902318,0.7533,2582.1,2581.8,3.87325]
[1727313902518,0.7533,2582.1,2581.6,0.07746149]
[1727313903222,0.804,2581.8,2581.3,11.3139]
[1727313903888,4.67735,2581.8,2581.3,11.3139]
[1727313904111,0.804,2581.8,2581.4,3.87378]
[1727313904320,3.8729,2582.1,2581.5,3.87361]
[1727313904321,0.804,2582.0,2581.5,3.87361]
[1727313904490,0.804,2582.0,2581.6,3.95089887]
[1727313904813,0.804,2582.0,2581.6,0.07745887]
[1727313905326,0.804,2582.0,2581.5,3.87361]
[1727313905820,0.804,2582.0,2581.6,3.87351]
[1727313906038,0.804,2582.0,2581.7,3.87339]
[1727313906419,0.804,2582.0,2581.5,4.52124046]
[1727313906623,0.804,2582.0,2581.7,3.87333]
[1727313906813,0.804,2582.0,2581.5,4.59871881]
[1727313906814,0.804,2582.0,2581.6,0.07745699]
[1727313906991,0.804,2582.0,2581.6,4.41083887]
[1727313907727,0.804,2582.0,2581.6,4.33338188]
[1727313908284,3.87327,2581.8,2581.3,8.958814]
[1727313908523,8.35106722,2582.0,2581.3,8.958814]
[1727313908724,4.67704,2582.0,2581.4,3.95124431]
[1727313908947,4.67704,2582.0,2581.4,5.85219183]
[1727313909090,4.67704,2582.0,2581.5,3.87363]
[1727313909294,4.67704,2582.0,2581.4,5.92965614]
[1727313909295,0.804,2582.0,2581.6,3.95093186]
[1727313909484,4.677,2582.0,2581.5,0.07745837]
[1727313909715,4.677,2582.0,2581.5,5.67550639]
[1727313910822,4.677,2582.0,2581.3,7.44]
[1727313911037,7.74663,2581.8,2581.3,7.44]
[1727313911723,3.87327,2581.8,2581.3,7.44]
[1727313911943,3.87327,2581.8,2581.3,11.31391]
[1727313912638,3.87353,2581.7,2581.3,7.44]
[1727313913748,3.87327,2581.8,2581.3,11.31401]
[1727313914309,3.87327,2581.8,2581.3,3.87401]
[1727313915239,3.87327,2581.8,2580.9,11.31457]
[1727313915240,3.67402722,2581.5,2580.9,11.31457]
[1727313915438,0.8323,2582.0,2581.8,3.87316]
[1727313915750,0.0338736,2582.2,2581.8,3.87316]
[1727313915751,0.8661736,2582.2,2581.9,4.260326]
[1727313915934,0.8661736,2582.2,2581.9,3.87301]
[1727313916137,0.8661736,2582.2,2581.8,3.87316]
[1727313916338,4.7388436,2582.2,2581.7,3.87334]
[1727313916593,0.8661736,2582.2,2581.8,0.07745394]
[1727313916710,0.0338736,2582.2,2582.1,3.87281]
[1727313917757,0.0338736,2582.2,2581.8,7.74634]
[1727313917961,0.0338736,2582.2,2581.6,3.87344]
[1727313917962,0.7621,2582.1,2581.6,3.87344]
[1727313918131,0.7621,2582.1,2581.6,4.260784]
[1727313918522,4.43612722,2582.1,2581.4,3.87375]
[1727313918751,0.7895,2581.8,2581.3,3.87395]
[1727313918950,4.66282,2581.8,2581.3,3.87395]
[1727313919151,4.66282,2581.8,2581.0,4.67843]
[1727313919451,0.7895,2581.8,2581.1,0.467843]
[1727313919658,0.7895,2581.8,2581.3,3.87397]
[1727313919852,0.7895,2581.8,2581.2,3.87402]
[1727313919853,0.7895,2581.8,2581.4,3.87381]
[1727313920230,0.7895,2581.8,2581.4,7.74759]
[1727313920438,0.7895,2581.8,2581.2,3.87406]
[1727313920640,0.7895,2581.8,2581.0,3.8041]
[1727313920973,0.7895,2581.8,2581.3,3.87388]
[1727313921171,0.7895,2581.8,2581.4,3.87385]
[1727313921469,3.67402722,2582.1,2581.7,3.87341]
[1727313921470,0.7553,2582.1,2581.7,3.87341]
[1727313921667,0.7553,2582.1,2581.6,3.87349]
[1727313923255,0.7553,2582.1,2581.5,3.87358]
[1727313923558,0.7553,2582.1,2581.7,3.87341]
[1727313925143,0.7553,2582.1,2581.5,3.87358]
[1727313925363,4.66876,2582.0,2581.5,7.74719]
[1727313925530,0.7958,2582.0,2581.5,3.87358]
[1727313926372,3.87344,2581.7,2581.2,7.44]
[1727313926684,4.63166,2581.8,2581.2,7.44]
[1727313926967,0.7583,2581.8,2581.2,7.44]
[1727313927264,0.7572,2581.3,2580.9,19.68]
[1727313927572,0.7572,2581.3,2580.9,3.87453]
[1727313927727,4.63134,2581.3,2580.9,0.774936]
[1727313927928,0.7572,2581.3,2580.9,0.774936]
[1727313928140,0.7572,2581.3,2580.9,4.649526]
[1727313928323,0.7572,2581.3,2580.9,0.774936]
[1727313928823,0.7572,2581.3,2580.9,4.649526]
[1727313929863,4.63125,2581.3,2580.8,3.87475]
[1727313930456,0.7572,2581.3,2580.8,3.87475]
[1727313930640,4.63126,2581.3,2580.8,3.87475]
[1727313931618,4.63126,2581.3,2580.5,3.0]
[1727313931619,3.8744,2581.1,2580.5,22.68]
[1727313931874,0.831,2581.1,2580.5,26.28708]
[1727313932037,0.831,2581.1,2580.6,0.07748982]
[1727313932248,4.70534,2581.1,2580.6,0.07748982]
[1727313932427,3.87452,2581.0,2580.5,6.60701]
[1727313932753,4.70534,2581.1,2580.5,10.48212]
[1727313932965,3.87449,2581.0,2580.5,6.607]
[1727313933140,0.7542,2580.8,2580.3,23.55544]
[1727313933342,0.7542,2580.8,2580.5,3.8752]
[1727313934169,0.7542,2580.8,2580.3,3.87544]
[1727313934361,0.7542,2580.8,2580.4,2.355544]
[1727313934532,4.62898,2580.8,2580.4,2.355544]
[1727313935034,0.7993,2580.6,2580.1,3.87571]
[1727313935234,0.7993,2580.6,2580.2,3.87557]
[1727313935440,0.7993,2580.9,2580.5,3.87512]
[1727313935856,0.7993,2580.9,2580.5,7.75026]
[1727313936250,0.7993,2580.9,2580.3,7.7508]
[1727313936447,4.67393,2580.9,2580.3,8.60463]
[1727313936747,4.67393,2580.9,2580.3,3.87537]
[1727313936748,4.67392,2580.9,2580.3,3.87537]
[1727313936958,4.67392,2580.9,2580.3,7.75079]
[1727313937784,4.67392,2580.9,2580.3,3.87537]
[1727313938250,4.67392,2580.9,2580.3,7.75079]
[1727313938579,4.67392,2580.9,2580.3,3.87537]
[1727313939111,0.7993,2580.9,2580.3,0.687537]
[1727313939285,0.7595,2580.7,2580.1,3.87571]
[1727313939593,4.63442,2580.7,2580.1,7.75142]
[1727313939786,4.63442,2580.7,2580.2,2.743142]
[1727313939996,0.7595,2580.7,2580.2,6.618792]
[1727313940587,3.67402722,2580.8,2579.9,23.55601]
[1727313940896,3.87405,2581.3,2579.9,23.55601]
[1727313940897,0.7595,2580.4,2579.9,23.55601]
[1727313941090,0.7595,2580.4,2580.1,3.87581]
[1727313941249,0.7595,2580.4,2580.2,0.39533209]
[1727313941449,0.7595,2580.4,2580.1,3.87581]
[1727313942054,0.7595,2580.4,2580.2,3.87561]
[1727313942296,0.7595,2580.7,2580.2,3.87561]
[1727313942584,0.7595,2580.7,2580.3,3.87542]
[1727313942785,0.7595,2580.7,2580.2,7.75119]
[1727313942996,0.7595,2580.7,2580.2,8.603419]
[1727313943175,0.7595,2580.7,2580.2,4.727809]
[1727313943348,0.7595,2580.7,2580.3,3.87551]
[1727313943685,0.7595,2580.7,2580.4,3.87534]
[1727313943985,0.7595,2580.7,2580.2,4.727799]
[1727313944189,0.7595,2580.7,2580.2,3.87557]
[1727313944977,4.63445,2580.7,2580.2,3.87557]
[1727313946549,0.7595,2580.7,2580.2,3.87557]
[1727313946703,4.63444,2580.7,2580.2,3.87557]
[1727313946885,4.63444,2580.7,2580.2,4.65846425]
[1727313947299,3.87524,2580.5,2580.0,3.87587]
[1727313947596,4.68546,2580.4,2580.0,3.87587]